bitfinex-derivatives/quotes_ETHF0:USTF0_20251117
["timestamp","ask_amount","ask_price","bid_price","bid_amount"]
[1763366310848,1.11960113,3203.4,3202.3,4.2808]
[1763366310849,3.71394,3203.4,3203.0,0.50618]
[1763366311042,1.28524689,3203.3,3203.2,0.5667]
[1763366311347,1.28524689,3203.3,3202.4,1.68033117]
[1763366311545,0.5737,3202.7,3202.6,0.50625]
[1763366311749,0.57666305,3202.7,3202.6,0.50625]
[1763366312046,0.9046,3202.5,3202.4,1.07297]
[1763366312847,0.3309,3202.5,3202.4,1.07297]
[1763366313054,0.57666305,3202.7,3202.6,0.5667]
[1763366313249,0.57666305,3202.7,3202.4,1.11895978]
[1763366313445,0.5737,3202.6,3202.5,1.07296]
[1763366314248,0.00296305,3202.7,3202.6,0.5667]
[1763366314453,0.00296305,3202.7,3202.6,2.4497305]
[1763366315252,0.00296305,3202.7,3202.6,1.33077072]
[1763366315452,0.50636,3201.9,3201.8,2.22610209]
[1763366315755,0.50645,3201.4,3201.0,0.39065735]
[1763366315963,3.97187072,3201.1,3201.0,0.95735735]
[1763366316655,3.97187072,3201.1,3201.0,0.39065735]
[1763366317348,3.97187072,3201.1,3201.0,1.46385735]
[1763366317750,3.97187072,3201.1,3201.0,0.95735735]
[1763366319951,4.47836072,3201.1,3201.0,0.95735735]
[1763366320555,3.2078,3201.1,3201.0,0.95735735]
[1763366321654,0.00468304,3201.4,3201.3,1.07316]
[1763366323854,3.2078,3202.0,3201.9,0.5667]
[1763366324551,3.97187072,3202.0,3201.9,0.5667]
[1763366325352,0.50639,3201.8,3201.6,0.00468304]
[1763366325555,0.76407072,3201.7,3201.6,0.00468304]
[1763366326751,0.50639,3201.8,3201.6,0.00468304]
[1763366326951,0.50639,3201.8,3201.6,0.57138304]
[1763366327248,0.50639,3201.8,3201.6,0.00468304]
[1763366327850,3.71414,3202.0,3201.9,0.5667]
[1763366328059,0.50638,3201.8,3201.6,0.51107304]
[1763366328256,0.50638,3201.8,3201.6,1.07777304]
[1763366328553,0.4699,3201.7,3201.6,1.07777304]
[1763366330660,0.4699,3201.7,3201.6,0.51107304]
[1763366331155,0.50638,3201.8,3201.7,0.50639]
[1763366331360,3.71415,3202.0,3201.9,0.5772]
[1763366331562,3.94741169,3202.0,3201.9,1.08356]
[1763366331750,3.2078,3202.0,3201.9,1.08356]
[1763366331952,3.71414,3202.0,3201.9,1.08356]
[1763366332154,4.18404,3202.0,3201.9,1.08356]
[1763366332354,4.18404,3202.0,3201.9,0.5772]
[1763366332655,0.97626,3201.9,3201.8,0.50638]
[1763366332855,4.18404,3202.0,3201.9,1.08356]
[1763366333257,3.2078,3202.0,3201.9,1.08356]
[1763366333650,0.00468304,3202.3,3202.2,1.08351]
[1763366338167,0.47458304,3202.3,3202.2,0.5772]
[1763366338360,0.47458304,3202.3,3202.2,1.08351]
[1763366338559,0.00468304,3202.3,3202.2,1.08351]
[1763366338761,0.51098304,3202.3,3202.2,1.08351]
[1763366339063,0.47458304,3202.3,3202.0,0.3218]
[1763366339266,0.97622,3202.2,3202.1,0.50633]
[1763366339666,0.97624,3202.0,3201.9,3.2078]
[1763366339967,0.97629,3201.7,3201.6,0.00468304]
[1763366340171,4.18409,3201.7,3201.6,0.00468304]
[1763366340369,4.92329445,3201.7,3201.6,0.58188304]
[1763366340558,4.18409,3201.7,3201.6,0.00468304]
[1763366340760,4.92623311,3201.7,3201.6,0.00468304]
[1763366340964,4.18409,3201.7,3201.6,0.00468304]
[1763366341663,0.97639,3201.1,3201.0,0.00265735]
[1763366341864,1.71883871,3201.1,3201.0,0.32445735]
[1763366342161,1.21234871,3201.1,3201.0,0.90165735]
[1763366342365,1.21231713,3201.1,3201.0,0.00265735]
[1763366342574,1.21231713,3201.1,3201.0,0.32445735]
[1763366342762,0.4699,3201.1,3201.0,0.32445735]
[1763366343170,0.97177,3200.6,3200.5,0.3218]
[1763366343374,4.42338248,3200.6,3200.5,0.899]
[1763366343673,0.4652,3200.6,3200.5,0.899]
[1763366344273,0.4652,3200.6,3200.5,0.90119135]
[1763366344864,0.4652,3200.6,3200.5,0.32399135]
[1763366345059,0.50654,3200.8,3200.6,1.08376]
[1763366345266,0.50654,3200.8,3200.7,0.5772]
[1763366345572,1.25695814,3200.8,3200.7,0.5772]
[1763366345767,1.71955814,3200.8,3200.7,0.5772]
[1763366346175,0.96914,3200.8,3200.5,0.32399135]
[1763366346365,0.4626,3200.6,3200.5,0.32399135]
[1763366346760,0.50655,3200.7,3200.5,0.32399135]
[1763366346964,0.4626,3200.6,3200.5,0.32399135]
[1763366347168,0.4604,3200.2,3199.7,3.2078]
[1763366347372,0.4604,3199.7,3199.6,0.50672]
[1763366347870,0.50666,3200.0,3199.8,1.08389]
[1763366348176,0.4604,3199.9,3199.8,0.58020718]
[1763366350070,0.4604,3199.9,3199.8,0.00300718]
[1763366350875,1.60577927,3199.9,3199.8,0.00300718]
[1763366353374,0.00317078,3200.0,3199.9,0.5772]
[1763366353568,0.00317078,3200.0,3199.9,3.785]
[1763366354973,0.00468304,3200.3,3200.2,0.5772]
[1763366355178,0.00468304,3200.3,3200.2,1.08383]
[1763366356177,0.00809539,3200.3,3200.2,1.08383]
[1763366357375,0.50644,3201.4,3201.3,0.6786]
[1763366357777,4.35317927,3201.5,3201.3,0.6786]
[1763366358273,4.86184046,3201.5,3201.3,1.18505]
[1763366360474,4.59381046,3201.5,3201.3,0.50645]
[1763366360779,0.2384,3201.4,3201.3,0.50645]
[1763366361283,0.745,3200.4,3199.8,0.50969718]
[1763366361475,1.14537927,3200.2,3200.1,0.6841]
[1763366361676,0.5066,3200.4,3200.1,0.6841]
[1763366361875,0.745,3200.4,3200.3,0.6841]
[1763366362177,0.50662,3200.3,3199.8,0.00300718]
[1763366362377,0.5066,3200.4,3200.0,0.82846]
[1763366362582,0.5066,3200.4,3200.1,0.50664]
[1763366362785,1.14537927,3200.5,3200.2,0.50662]
[1763366363086,6.6176288,3200.3,3199.0,0.91251]
[1763366363381,0.50679,3199.2,3199.0,0.4057]
[1763366363973,3.71739083,3199.2,3199.0,0.40971523]
[1763366364171,3.71739083,3199.2,3199.0,0.91653523]
[1763366365284,0.00280083,3199.2,3199.1,0.6841]
[1763366366678,0.00280083,3199.2,3199.0,0.91653523]
[1763366367484,0.50959083,3199.2,3199.0,0.40971523]
[1763366367780,0.00280083,3199.2,3199.1,0.6841]
[1763366367983,3.2078,3199.6,3199.5,0.50674]
[1763366368185,3.2078,3199.6,3199.5,1.59654]
[1763366368582,3.2078,3199.6,3199.5,0.91244]
[1763366368883,3.2078,3199.6,3199.5,0.4057]
[1763366369083,3.21062731,3199.6,3199.5,0.4057]
[1763366372887,5.63017327,3199.6,3199.2,0.50678]
[1763366373083,0.50675,3199.5,3199.0,0.40971523]
[1763366373288,1.27419738,3199.5,3199.0,0.40971523]
[1763366373591,0.50675,3199.5,3199.0,0.40971523]
[1763366374295,0.50676,3199.4,3199.2,0.50678]
[1763366374497,4.86274658,3199.6,3199.3,0.50677]
[1763366374691,1.27413139,3199.5,3199.0,0.40971523]
[1763366374991,4.35600658,3199.6,3199.3,0.50677]
[1763366375194,0.50676,3199.5,3199.2,0.50678]
[1763366375395,1.14537927,3199.3,3199.1,0.5068]
[1763366376298,1.65214927,3199.3,3199.2,0.50679]
[1763366376504,2.41953527,3199.3,3199.2,0.50679]
[1763366376803,1.91276527,3199.3,3199.2,0.50679]
[1763366377501,2.41953527,3199.3,3199.2,0.50679]
[1763366379401,2.4193875,3199.3,3199.2,0.50679]
[1763366380207,1.14537927,3199.3,3199.2,0.50679]
[1763366380710,1.14537927,3199.3,3199.2,1.19089]
[1763366381811,1.65214927,3199.3,3199.2,1.19089]
[1763366382517,1.14537927,3199.3,3199.2,1.19089]
[1763366384407,1.14537927,3199.3,3199.2,0.50679]
[1763366385314,1.14537927,3199.3,3199.2,1.19089]
[1763366385517,4.35600658,3199.6,3199.5,1.59654]
[1763366385815,5.62989657,3199.6,3199.5,1.59654]
[1763366387517,5.62989657,3199.6,3199.5,1.0898]
[1763366387906,5.62989657,3199.6,3199.5,0.4057]
[1763366388117,5.62989657,3199.6,3199.5,0.91244]
[1763366388615,4.4845173,3199.6,3199.5,0.4057]
[1763366388815,4.4845173,3199.6,3199.5,0.91244]
[1763366389015,4.4845173,3199.6,3199.5,1.59654]
[1763366390715,4.4845173,3199.6,3199.5,0.4057]
[1763366390912,4.4845173,3199.6,3199.5,0.91244]
[1763366392016,4.4845173,3199.6,3199.5,0.4057]
[1763366392312,0.5068,3199.1,3199.0,0.40971523]
[1763366392515,1.27396999,3199.1,3199.0,0.40971523]
[1763366392719,0.76716999,3199.1,3199.0,1.61063523]
[1763366393016,1.12474602,3199.5,3199.4,0.6941]
[1763366393216,2.39759294,3199.5,3199.4,1.20086]
[1763366393718,2.39759294,3199.5,3199.4,0.6941]
[1763366393909,0.50677,3199.4,3199.3,0.50677]
[1763366394109,2.39762564,3199.4,3199.3,0.50677]
[1763366394517,1.89085564,3199.4,3199.3,0.50677]
[1763366394914,2.6347719,3199.4,3199.3,1.20087]
[1763366395318,1.51002318,3199.4,3199.3,1.20087]
[1763366395821,1.51002318,3199.4,3199.3,0.50677]
[1763366396119,2.01678318,3199.4,3199.3,0.50677]
[1763366396819,0.5068,3199.1,3199.0,0.40971523]
[1763366397117,2.01682318,3199.1,3199.0,0.40971523]
[1763366397325,2.12337937,3199.1,3199.0,0.40971523]
[1763366398108,1.27290692,3199.1,3199.0,1.10381523]
[1763366398314,0.76610692,3199.1,3199.0,1.61063523]
[1763366400121,4.05827245,3199.2,3199.1,1.2009]
[1763366400317,1.12480702,3199.4,3199.3,1.20087]
[1763366400725,0.76624877,3199.4,3199.3,1.20087]
[1763366400927,1.27300877,3199.4,3199.3,1.20087]
[1763366401122,0.76624877,3199.4,3199.3,1.20087]
[1763366401724,0.00282731,3199.6,3199.5,1.62014]
[1763366402523,0.00468304,3200.0,3199.9,1.20078]
[1763366403717,0.0076487,3200.0,3199.9,1.20078]
[1763366403921,4.87e-05,3200.0,3199.9,1.20078]
[1763366404123,3.71439,3200.5,3199.8,3.2078]
[1763366404124,3.71439,3200.5,3200.4,0.6941]
[1763366404326,1.63134702,3200.8,3200.7,0.6941]
[1763366404631,0.82984,3200.8,3200.7,0.6941]
[1763366404833,4.65590702,3201.0,3200.9,0.6941]
[1763366405028,0.50652,3200.9,3200.6,0.51124304]
[1763366405337,0.3233,3200.8,3200.7,1.20064]
[1763366405528,0.50652,3200.9,3200.8,0.6941]
[1763366406333,0.3233,3200.7,3200.6,0.00468304]
[1763366406534,0.3233,3200.7,3200.6,0.69878304]
[1763366406836,0.50654,3200.8,3200.7,0.6941]
[1763366407329,3.21135298,3201.0,3200.9,0.6941]
[1763366407927,0.00355298,3201.0,3200.9,0.6941]
[1763366413841,0.32685298,3201.0,3200.9,0.6941]
[1763366414540,0.3233,3200.8,3200.7,1.20065]
[1763366414840,0.3233,3200.8,3200.7,0.6941]
[1763366415038,0.82985,3200.7,3200.6,0.00468304]
[1763366415834,0.82985,3200.7,3200.6,0.69878304]
[1763366416944,0.82982,3200.9,3200.8,0.6941]
[1763366417145,1.57781795,3200.9,3200.8,0.6941]
[1763366417442,0.82982,3200.9,3200.8,0.6941]
[1763366417749,0.3233,3200.9,3200.8,0.6941]
[1763366418131,3.71786298,3201.0,3200.9,0.6941]
[1763366418333,3.21135298,3201.0,3200.9,0.6941]
[1763366418537,0.50652,3200.9,3200.6,0.00468304]
[1763366418743,0.67252,3200.9,3200.8,0.599]
[1763366419749,0.67255,3200.7,3200.6,0.60368304]
[1763366420152,0.67255,3200.7,3200.6,0.00468304]
[1763366420445,0.166,3200.1,3199.8,3.2078]
[1763366420852,0.50662,3200.3,3200.2,0.599]
[1763366421546,3.7144,3200.4,3200.3,1.10561]
[1763366421945,0.00355298,3201.0,3200.8,1.10553]
[1763366421946,3.2078,3200.9,3200.8,1.10553]
[1763366422745,0.00355298,3201.0,3200.9,1.10552]
[1763366424739,0.00355298,3201.0,3200.9,0.599]
[1763366424939,0.00355298,3201.0,3200.6,3.2078]
[1763366425143,0.00355298,3201.0,3200.8,0.50653]
[1763366425144,0.50652,3200.9,3200.8,0.50653]
[1763366425339,0.50655,3200.7,3200.6,0.599]
[1763366425745,0.50655,3200.7,3200.5,0.9604]
[1763366426750,3.71433,3200.9,3200.6,1.10555]
[1763366426946,0.50654,3200.8,3200.6,1.10555]
[1763366428149,0.166,3200.7,3200.6,1.10555]
[1763366428448,0.67265,3200.1,3199.6,3.2078]
[1763366428648,0.5067,3199.8,3199.6,0.599]
[1763366429150,0.67272,3199.6,3199.5,0.4193]
[1763366429351,0.50679,3199.2,3199.0,0.91653523]
[1763366429549,0.50679,3199.2,3199.1,0.599]
[1763366429750,0.50678,3199.3,3199.1,0.599]
[1763366430055,0.67279,3199.2,3199.0,0.91652523]
[1763366430750,0.166,3199.1,3199.0,0.00401523]
[1763366430957,0.67285,3198.8,3198.7,0.03126319]
[1763366431250,3.2078,3198.8,3198.7,0.63026319]
[1763366431441,3.2078,3199.3,3199.0,0.3614]
[1763366431641,1.25611839,3199.2,3199.1,0.599]
[1763366431850,1.25611839,3199.2,3199.1,0.60175607]
[1763366432054,1.42211839,3199.2,3199.1,0.00275607]
[1763366432454,0.74932839,3199.2,3199.1,0.60175607]
[1763366432648,0.50678,3199.3,3199.1,0.00275607]
[1763366432961,0.166,3199.2,3199.1,0.00275607]
[1763366433155,3.2078,3199.3,3199.1,0.60175607]
[1763366433349,3.2078,3199.3,3199.2,1.10579]
[1763366433544,3.2078,3199.3,3199.2,0.599]
[1763366434050,0.00468304,3199.4,3199.3,1.10577]
[1763366434656,3.2078,3200.1,3200.0,0.9604]
[1763366435155,0.50657,3200.6,3200.3,0.50661]
[1763366435156,3.2078,3200.6,3200.3,0.50661]
[1763366435351,3.2078,3200.6,3200.5,0.3614]
[1763366435552,3.2078,3200.6,3200.5,0.9604]
[1763366435754,0.50654,3200.8,3200.5,1.46697]
[1763366435952,0.50654,3200.8,3200.7,0.599]
[1763366436161,0.00468304,3200.9,3200.8,0.599]
[1763366437253,0.00355298,3201.0,3200.9,1.10552]
[1763366437455,0.50653,3200.9,3200.5,0.86797]
[1763366437652,0.50654,3200.8,3200.5,0.86797]
[1763366438161,0.50654,3200.8,3200.6,0.50656]
[1763366438657,0.50654,3200.8,3200.7,0.599]
[1763366439257,3.72254602,3201.0,3200.7,0.599]
[1763366439460,3.21603602,3201.0,3200.7,1.10555]
[1763366439665,0.50652,3200.9,3200.7,1.10555]
[1763366439857,0.50652,3200.9,3200.7,0.599]
[1763366440257,3.21603602,3201.0,3200.7,0.599]
[1763366440456,0.50652,3200.9,3200.7,0.599]
[1763366440657,0.68201,3200.3,3200.2,0.00468304]
[1763366440856,0.1754,3199.9,3199.4,0.50675]
[1763366441155,3.71447,3200.0,3199.4,0.50675]
[1763366441360,3.71447,3200.0,3199.9,0.599]
[1763366441558,0.50669,3199.9,3199.4,0.50675]
[1763366441755,0.5067,3199.8,3199.4,0.50675]
[1763366442062,3.2078,3200.0,3199.9,0.599]
[1763366442063,3.71447,3200.0,3199.9,0.599]
[1763366442359,0.50669,3199.9,3199.5,0.3614]
[1763366442655,0.50669,3199.9,3199.8,0.599]
[1763366442858,3.2078,3200.0,3199.9,0.599]
[1763366444259,3.71447,3200.0,3199.6,0.50672]
[1763366444657,3.71447,3200.0,3199.9,0.599]
[1763366444857,3.2078,3200.0,3199.9,0.599]
[1763366445769,3.2078,3200.0,3199.9,1.10568]
[1763366446360,0.50669,3199.9,3199.5,0.86813]
[1763366446671,0.50669,3199.9,3199.6,0.50672]
[1763366447165,0.1754,3199.6,3199.5,0.3614]
[1763366447358,3.3832,3199.6,3199.5,0.3614]
[1763366448873,0.0037,3199.4,3199.3,0.00468304]
[1763366449565,0.75708603,3199.4,3199.3,0.00468304]
[1763366450367,0.0037,3199.2,3198.7,0.03126319]
[1763366450572,3.2078,3198.9,3198.7,0.03126319]
[1763366451170,3.71465,3198.9,3198.7,0.03126319]
[1763366451367,3.71465,3198.9,3198.7,0.03442689]
[1763366451769,0.75306578,3198.8,3198.7,0.03442689]
[1763366452974,3.71465,3198.9,3198.7,0.03442689]
[1763366453175,0.75291561,3198.8,3198.7,0.03442689]
[1763366453378,3.71465,3198.9,3198.7,0.03442689]
[1763366453770,3.71465,3198.9,3198.8,0.5759]
[1763366453976,4.46755576,3198.9,3198.8,0.5759]
[1763366454471,3.71465,3198.9,3198.8,0.5759]
[1763366454674,3.71465,3198.9,3198.7,0.03442689]
[1763366454876,3.71465,3198.9,3198.8,0.5759]
[1763366455177,3.96096352,3198.9,3198.8,0.5759]
[1763366455376,3.2078,3198.9,3198.8,0.5759]
[1763366456280,3.2078,3198.9,3198.7,0.54128689]
[1763366456473,3.2078,3198.9,3198.8,0.5759]
[1763366458779,3.71464,3198.9,3198.7,0.54128689]
[1763366459177,3.2078,3198.9,3198.8,0.5759]
[1763366459484,3.2078,3198.9,3198.7,0.54128689]
[1763366459675,0.00468304,3199.1,3199.0,0.85762]
[1763366459979,0.00468304,3199.1,3199.0,1.43352]
[1763366460380,0.51148304,3199.1,3199.0,1.43352]
[1763366460577,1.26490578,3199.1,3199.0,0.85762]
[1763366460778,0.75810578,3199.1,3199.0,0.85762]
[1763366460981,0.00468304,3199.1,3199.0,0.85762]
[1763366461181,0.51148304,3199.1,3199.0,0.85762]
[1763366461381,0.75804846,3199.1,3199.0,0.85762]
[1763366461574,0.00468304,3199.1,3199.0,0.85762]
[1763366461770,0.00468304,3199.1,3199.0,1.43352]
[1763366462575,0.75434147,3199.6,3199.5,0.3508]
[1763366462782,1.26107147,3199.6,3199.5,0.3508]
[1763366462977,0.75434147,3199.6,3199.5,1.43344]
[1763366463382,0.75434147,3199.6,3199.5,0.85754]
[1763366463585,1.26107147,3199.6,3199.5,0.85754]
[1763366464082,1.26107147,3199.6,3199.5,0.3508]
[1763366464278,0.50777,3199.3,3199.2,0.51147304]
[1763366464486,3.71557,3199.3,3199.2,0.51147304]
[1763366465178,3.71557,3199.3,3199.2,0.00468304]
[1763366465382,3.2078,3199.3,3199.2,1.08737304]
[1763366465684,3.71557,3199.3,3199.2,0.51147304]
[1763366465877,3.71557,3199.3,3199.2,0.00468304]
[1763366467290,0.50685,3198.8,3198.7,1.11719689]
[1763366467576,4.46293221,3198.8,3198.7,0.61032689]
[1763366467781,3.95608221,3198.8,3198.7,1.11719689]
[1763366468076,4.46292809,3198.8,3198.7,0.54129689]
[1763366468278,4.46292809,3198.8,3198.7,0.03442689]
[1763366468481,3.95607809,3198.8,3198.7,1.11719689]
[1763366470189,4.46292809,3198.8,3198.7,1.11719689]
[1763366470889,3.95607809,3198.8,3198.7,1.11719689]
[1763366471093,4.46292809,3198.8,3198.7,0.61032689]
[1763366471294,3.95607809,3198.8,3198.7,1.11719689]
[1763366472690,2.83232259,3198.8,3198.7,1.11719689]
[1763366473497,3.58200843,3198.8,3198.7,1.11719689]
[1763366473683,0.74968584,3198.8,3198.7,1.11719689]
[1763366473889,3.2078,3199.2,3199.1,0.5068]
[1763366474089,3.95743096,3199.2,3199.1,0.5068]
[1763366474595,3.95743096,3199.2,3199.1,1.0827]
[1763366474991,0.74963096,3199.2,3199.1,1.0827]
[1763366475193,0.50676,3199.4,3199.3,0.50677]
[1763366475493,0.50677,3199.3,3199.2,0.50678]
[1763366475694,0.5068,3199.2,3199.0,0.85761]
[1763366476003,0.75008528,3199.1,3199.0,0.85761]
[1763366476193,0.75008528,3199.1,3199.0,1.43351]
[1763366477902,0.50674,3199.5,3199.4,1.08266]
[1763366478102,1.25735422,3199.5,3199.4,1.08266]
[1763366478298,0.75061422,3199.5,3199.4,1.08266]
[1763366478498,1.25735422,3199.5,3199.4,1.08266]
[1763366478698,0.75061422,3199.5,3199.4,1.08266]
[1763366479400,0.75061422,3199.5,3199.0,0.3508]
[1763366479603,3.71458,3199.3,3199.2,0.50677]
[1763366479795,4.46519422,3199.3,3199.2,0.50677]
[1763366480302,3.95841422,3199.3,3199.2,0.50677]
[1763366480504,4.46518422,3199.3,3199.2,0.50677]
[1763366480702,3.95841422,3199.3,3199.2,0.50677]
[1763366481018,3.95841422,3199.3,3199.2,1.01007]
[1763366482498,3.58299196,3199.3,3199.2,1.01007]
[1763366485411,0.75061422,3199.3,3199.2,1.01007]
[1763366485608,1.25738422,3199.3,3199.2,0.50677]
[1763366485809,0.75061422,3199.3,3199.2,1.01007]
[1763366486313,1.25738422,3199.3,3199.2,0.5033]
[1763366486501,0.50679,3199.2,3199.0,0.3508]
[1763366486701,0.75013693,3199.1,3199.0,1.36092]
[1763366487410,0.75017904,3199.2,3199.1,0.5068]
[1763366487612,0.75017904,3199.2,3199.1,1.0101]
[1763366487913,3.2078,3199.4,3199.3,1.01007]
[1763366488116,3.95793341,3199.4,3199.3,1.01007]
[1763366490215,5.07737022,3199.4,3199.0,0.3508]
[1763366490517,3.71456,3199.4,3199.3,1.01007]
[1763366490714,4.4646848,3199.4,3199.3,1.01007]
[1763366491212,3.9579248,3199.4,3199.3,1.01007]
[1763366491516,3.9579248,3199.4,3199.3,0.50677]
[1763366492105,3.9579248,3199.4,3199.3,1.01007]
[1763366493117,3.2078,3199.4,3199.3,1.01007]
[1763366496016,0.50678,3199.3,3199.2,0.50679]
[1763366496213,0.74379694,3199.3,3199.2,1.01009]
[1763366497318,1.25056694,3199.3,3199.2,1.01009]
[1763366497718,0.74379694,3199.3,3199.2,1.01009]
[1763366502318,4.32723681,3199.8,3199.7,1.01001]
[1763366502515,3.2078,3199.8,3199.7,1.01001]
[1763366502720,3.7106,3199.8,3199.7,1.01001]
[1763366503018,3.7106,3199.8,3199.7,0.50671]
[1763366503422,1.00956,3199.4,3199.3,0.50677]
[1763366503621,0.5028,3199.4,3199.3,1.01007]
[1763366504225,1.00952,3199.7,3199.6,0.50672]
[1763366504527,3.71449,3199.8,3199.7,1.01001]
[1763366504721,3.2078,3199.8,3199.7,1.01001]
[1763366506821,3.7106,3199.8,3199.7,0.50671]
[1763366508129,1.00952,3199.7,3199.6,0.50673]
[1763366509432,0.5028,3199.7,3199.6,0.50673]
[1763366510436,1.00951,3199.7,3199.6,0.50673]
[1763366511048,0.5028,3199.7,3199.6,0.50673]
[1763366511451,0.5028,3199.7,3199.6,1.01003]
[1763366511653,3.2078,3199.8,3199.7,0.97621]
[1763366512148,0.00468304,3199.9,3199.8,0.97619]
[1763366514948,0.50238304,3199.9,3199.8,0.97619]
[1763366515346,1.00439,3199.8,3199.7,0.5067]
[1763366515748,1.73907249,3199.8,3199.7,0.5067]
[1763366516052,1.23238249,3199.8,3199.7,0.9762]
[1763366516248,1.73907249,3199.8,3199.7,0.9762]
[1763366517245,1.23238249,3199.8,3199.7,0.9762]
[1763366517757,3.21248304,3199.9,3199.8,0.97619]
[1763366517947,4.4448986,3199.9,3199.8,0.97619]
[1763366518355,4.9515786,3199.9,3199.8,0.97619]
[1763366518844,4.4448986,3199.9,3199.8,0.97619]
[1763366520051,0.7393986,3199.9,3199.8,0.97619]
[1763366520245,0.00468304,3199.9,3199.8,0.97619]
[1763366521340,0.00468304,3199.9,3199.5,3.4939]
[1763366521341,3.2078,3201.2,3200.9,0.4695]
[1763366521645,0.51015298,3201.0,3200.9,0.50652]
[1763366521946,0.00355298,3201.0,3200.9,0.97602]
[1763366522653,0.00468304,3201.3,3201.2,0.97597]
[1763366523647,0.00868769,3201.3,3201.2,0.97911551]
[1763366524248,0.51528769,3201.3,3201.2,0.97911551]
[1763366524553,0.00868769,3201.3,3201.2,0.97911551]
[1763366527252,3.2078,3202.1,3202.0,0.7526]
[1763366528149,3.21175377,3202.1,3202.0,0.7526]
[1763366529156,0.5066,3201.8,3201.7,0.00468304]
[1763366529456,0.5066,3201.3,3201.0,3.4909]
[1763366529957,3.2078,3201.7,3201.0,3.4909]
[1763366530154,3.2078,3201.7,3201.6,0.4695]
[1763366530351,3.7144,3201.7,3201.6,0.4695]
[1763366530554,0.5066,3201.6,3201.3,0.51112304]
[1763366530855,0.5066,3201.4,3201.3,0.51112304]
[1763366531452,3.7144,3201.7,3201.6,0.50641]
[1763366532255,0.5066,3201.5,3201.4,0.50643]
[1763366532655,3.7142,3201.7,3201.5,0.78951]
[1763366532855,0.5066,3201.6,3201.5,0.78951]
[1763366533055,3.2078,3201.7,3201.5,1.25901]
[1763366533255,3.7144,3201.7,3201.6,0.4695]
[1763366533660,3.2078,3201.7,3201.6,0.4695]
[1763366534856,0.50636,3201.9,3201.7,0.50639]
[1763366535054,3.71835377,3202.1,3201.5,0.2831]
[1763366535254,4.22468377,3202.1,3201.9,0.50635]
[1763366535856,3.21175377,3202.1,3202.0,0.7526]
[1763366536364,3.21175377,3202.1,3202.0,1.25895]
[1763366537968,3.71835377,3202.1,3202.0,1.25895]
[1763366538356,3.21175377,3202.1,3202.0,1.25895]
[1763366539667,0.4502,3202.0,3201.5,0.2831]
[1763366539867,0.4502,3202.0,3201.9,0.4412]
[1763366540070,3.21175377,3202.1,3202.0,1.20775]
[1763366540468,0.4502,3202.0,3201.9,0.50635]
[1763366542570,0.4502,3201.8,3201.7,0.50638]
[1763366543465,0.95658,3201.8,3201.7,0.50638]
[1763366543670,0.4502,3201.8,3201.7,0.50638]
[1763366544567,0.4502,3201.6,3201.5,0.78952]
[1763366544763,0.4502,3201.6,3201.5,0.50642]
[1763366545165,0.4502,3201.6,3201.5,0.76662]
[1763366545366,0.4502,3201.8,3201.7,0.4412]
[1763366545669,0.50635,3202.0,3201.8,0.50637]
[1763366545873,0.95655,3202.0,3201.9,0.4412]
[1763366546170,0.95656,3201.9,3201.8,0.50637]
[1763366546365,3.21175377,3202.1,3201.3,0.44588304]
[1763366546567,0.4502,3201.4,3201.3,0.95234304]
[1763366547062,3.658,3201.7,3201.6,0.50641]
[1763366547666,4.16439,3201.7,3201.6,0.50641]
[1763366548068,3.658,3201.7,3201.6,0.50641]
[1763366548264,4.38172887,3201.7,3201.6,0.50641]
[1763366548469,0.5984,3201.5,3201.4,0.50643]
[1763366548670,0.4502,3201.5,3201.4,0.94763]
[1763366549069,0.4502,3201.7,3201.6,0.94761]
[1763366549277,1.6802902,3201.7,3201.6,0.94761]
[1763366549471,0.4502,3201.4,3201.3,0.95234304]
[1763366550072,0.95661,3201.6,3201.5,0.76662]
[1763366550275,1.68114931,3201.6,3201.5,0.76662]
[1763366550674,1.17473931,3201.6,3201.5,0.76662]
[1763366550874,1.17473931,3201.6,3201.5,1.20782]
[1763366551467,1.68114931,3201.6,3201.5,1.20782]
[1763366551668,1.17473931,3201.6,3201.5,1.20782]
[1763366552673,0.72453931,3201.6,3201.5,1.20782]
[1763366554481,1.17473931,3201.6,3201.5,1.20782]
[1763366555668,1.68114931,3201.6,3201.3,0.00468304]
[1763366555869,2.07607681,3201.4,3201.3,0.00468304]
[1763366556073,1.68117931,3201.4,3201.3,0.00468304]
[1763366556279,0.4502,3200.8,3200.7,0.50654]
[1763366556479,0.4502,3200.3,3200.2,3.2078]
[1763366556879,0.4502,3199.9,3199.8,0.4412]
[1763366557083,0.4502,3199.9,3199.8,0.94789]
[1763366557584,0.95685,3200.1,3200.0,1.20806]
[1763366557775,2.16462,3200.3,3200.0,1.20806]
[1763366557974,0.2432,3200.1,3200.0,1.20806]
[1763366559171,1.658,3200.3,3200.0,0.7014]
[1763366559376,1.9012,3200.3,3200.2,0.94783]
[1763366559690,1.9012,3200.3,3200.2,0.00356852]
[1763366559874,2.61491226,3200.3,3200.2,0.00356852]
[1763366560182,0.2432,3199.8,3199.7,3.2078]
[1763366561081,0.24719346,3199.8,3199.7,3.21169019]
[1763366563077,0.00399346,3199.8,3199.7,3.65289019]
[1763366566983,0.00399346,3199.8,3199.7,4.15960019]
[1763366567186,1.658,3200.3,3200.2,0.94783]
[1763366567187,3.2078,3200.3,3200.2,0.94783]
[1763366567586,3.96161,3200.3,3200.2,0.50663]
[1763366567890,3.96161,3200.3,3200.2,0.94783]
[1763366568087,3.96161,3200.3,3200.2,0.4412]
[1763366568289,3.96549327,3200.3,3200.2,0.4412]
[1763366569291,3.96549327,3200.3,3200.2,0.94783]
[1763366571194,0.72709,3199.8,3199.7,0.00389019]
[1763366572301,0.2204,3199.0,3198.9,0.50682]
[1763366572591,0.2204,3198.9,3198.8,3.2078]
[1763366572783,0.2204,3198.9,3198.8,3.6298]
[1763366573187,0.5068,3199.2,3199.1,0.422]
[1763366573594,0.7272,3199.2,3199.1,0.422]